bitfinex/quotes_ETHUSD_20220305
["timestamp","ask_amount","ask_price","bid_price","bid_amount"]
[1646440870240,1.57286527,2608.9,2608.2,3.69176]
[1646440870441,0.1915,2609.1,2608.1,0.43154423]
[1646440870643,1.5729062,2609.0,2608.2,15.16]
[1646440870847,1.5729062,2609.0,2608.4,12.61873]
[1646440871045,0.1915,2609.1,2608.5,0.19174]
[1646440871308,0.00240983,2608.7,2608.5,0.19174]
[1646440871506,0.00240983,2608.7,2608.5,11.85174]
[1646440871707,0.00240983,2608.7,2608.6,16.19027235]
[1646440872306,0.153332,2609.2,2608.6,16.19027235]
[1646440872606,0.00201509,2608.7,2608.6,17.14888235]
[1646440872805,0.00201509,2608.7,2608.6,18.14888235]
[1646440873105,0.153332,2609.2,2608.6,17.14888235]
[1646440873311,0.69675303,2610.0,2608.8,0.19172]
[1646440873618,1.57251282,2609.7,2608.9,0.95851]
[1646440873811,0.1915,2610.1,2609.1,11.66]
[1646440874011,1.5723411,2610.0,2609.2,3.5]
[1646440874210,1.5723411,2609.9,2609.0,16.16]
[1646440874412,0.86798285,2610.1,2609.4,0.99406174]
[1646440874612,0.1915,2610.4,2609.4,0.99406174]
[1646440874813,0.00257465,2609.7,2609.4,3.3756772]
[1646440875040,0.00257465,2609.7,2609.4,0.99406174]
[1646440875446,0.00257465,2609.7,2609.3,12.66]
[1646440875643,1.57221897,2610.2,2609.3,12.66]
[1646440875843,1.57221897,2610.2,2609.4,1.15003]
[1646440876044,0.3819,2610.4,2608.9,5.90667]
[1646440876045,0.00257466,2609.7,2608.9,5.90667]
[1646440876248,0.00257466,2609.7,2608.9,1.91687]
[1646440876444,0.00257466,2609.7,2608.7,0.94000938]
[1646440876445,0.96296191,2609.4,2608.7,0.94000938]
[1646440876645,0.96296191,2609.4,2608.4,2.81482]
[1646440876846,5.07251351,2609.3,2608.0,4.54758]
[1646440877045,3.5,2609.2,2608.2,0.19177]
[1646440877448,3.48731286,2609.2,2608.2,0.19177]
[1646440878251,0.89698359,2608.8,2608.2,0.19177]
[1646440879693,0.00230999,2608.6,2608.2,0.19177]
[1646440880492,0.89458791,2608.8,2608.2,0.19177]
[1646440881894,0.00208396,2608.6,2608.2,0.19177]
[1646440882748,1.57251351,2609.3,2608.3,0.95875]
[1646440882943,1.57251351,2609.3,2608.5,0.19175]
[1646440883747,1.57251351,2609.3,2608.7,1.0071131]
[1646440883947,1.57251351,2609.3,2608.8,0.19173]
[1646440884347,0.00257372,2609.0,2608.8,0.19173]
[1646440884946,0.00257372,2609.0,2608.6,1.3421]
[1646440885148,0.00257372,2609.0,2608.6,0.38345]
[1646440885349,1.57251351,2609.3,2608.3,0.38349]
[1646440885547,0.00208397,2609.0,2608.3,0.38349]
[1646440886201,0.98205373,2608.8,2608.2,2.10893]
[1646440886392,0.98205373,2608.8,2608.2,1.91733]
[1646440886593,0.00208397,2609.0,2608.2,1.91733]
[1646440886894,0.00208397,2608.8,2608.2,1.91733]
[1646440887095,0.00208397,2608.8,2608.1,0.38352]
[1646440887696,0.00208397,2608.8,2608.1,1.47187585]
[1646440887898,0.00257636,2608.6,2608.1,1.47187585]
[1646440888297,0.00257636,2608.6,2608.1,2.43071585]
[1646440888797,0.00257636,2608.6,2608.1,14.09071585]
[1646440888997,0.00257636,2608.6,2608.1,15.09071585]
[1646440889199,0.00257638,2608.5,2608.1,15.09071585]
[1646440890437,0.00232265,2608.4,2608.1,15.09071585]
[1646440890843,0.00232265,2608.4,2608.1,2.34236]
[1646440891042,1.67771561,2608.0,2607.8,1.2058]
[1646440891238,1.67771561,2608.0,2607.6,1.0]
[1646440892742,0.00227324,2607.9,2607.6,1.0]
[1646440893797,1.67771561,2608.0,2607.6,1.0]
[1646440893998,0.00252698,2607.9,2607.6,1.0]
[1646440894801,1.67771561,2608.0,2607.6,1.0]
[1646440895198,0.00252698,2607.9,2607.6,1.0]
[1646440895799,0.00252698,2607.9,2607.8,0.96362091]
[1646440896199,0.00252698,2607.9,2607.8,12.62362091]
[1646440896401,0.00505396,2607.9,2607.8,12.62362091]
[1646440896601,0.00252698,2607.9,2607.8,12.62362091]
[1646440896799,0.00252698,2607.9,2607.8,13.62362091]
[1646440897201,0.00252698,2607.9,2607.8,14.58245091]
[1646440897644,1.68001443,2608.0,2607.8,14.58245091]
[1646440898445,1.67771561,2608.0,2607.8,1.96362091]
[1646440898845,1.68001442,2608.0,2607.7,1.57527]
[1646440899048,1.68001442,2608.0,2607.6,2.19182]
[1646440899247,1.68001442,2608.0,2607.6,1.0]
[1646440900050,0.00229883,2607.9,2607.6,1.0]
[1646440900650,0.00143844,2607.9,2607.6,1.0]
[1646440900848,1.67771561,2608.0,2607.6,1.0]
[1646440901049,0.00241085,2607.9,2607.6,1.0]
[1646440901494,1.63814907,2608.0,2607.6,1.0]
[1646440904600,1.01078786,2607.7,2607.6,1.0]
[1646440909591,1.64022783,2608.0,2607.6,1.0]
[1646440909791,1.57308042,2607.9,2607.6,1.0]
[1646440914648,1.64057968,2608.0,2607.6,1.0]
[1646440915049,1.64057968,2608.0,2607.6,13.0419]
[1646440915249,1.64057968,2608.0,2607.8,11.66]
[1646440915656,1.64057971,2608.0,2607.8,1.0]
[1646440915848,1.64057971,2608.0,2607.7,1.05195482]
[1646440916788,1.63814907,2608.0,2607.7,1.05195482]
[1646440917089,1.640475,2608.0,2607.7,1.05195482]
[1646440917291,1.640475,2608.0,2607.6,2.38361]
[1646440917496,1.640475,2608.0,2607.6,1.38361]
[1646440917694,1.63814907,2608.0,2607.6,1.38361]
[1646440917894,2.79794907,2608.0,2607.6,1.0]
[1646440918095,2.80016569,2608.0,2607.6,1.0]
[1646440918396,3.93495027,2608.0,2607.6,1.0]
[1646440918998,1.57307941,2607.9,2607.6,1.0]
[1646440921440,0.67805072,2607.5,2607.1,0.19186]
[1646440922845,0.67805072,2607.5,2607.2,0.95919]
[1646440923046,0.67805072,2607.5,2607.3,11.66]
[1646440923246,0.67805072,2607.5,2607.3,13.04363]
[1646440923445,0.67805072,2607.5,2607.4,0.97562692]
[1646440923894,1.64060277,2608.0,2607.6,13.5780675]
[1646440924095,1.6431306,2608.0,2607.6,1.9180675]
[1646440924294,1.6406769,2608.0,2607.6,1.38361]
[1646440924495,1.6406769,2608.0,2607.6,0.38361]
[1646440924896,1.6406769,2608.0,2607.3,2.9181]
[1646440924897,1.63814907,2608.0,2607.3,2.9181]
[1646440925095,1.57300263,2607.9,2607.0,0.95925]
[1646440925295,1.57300263,2607.9,2607.0,1.95925]
[1646440925503,1.57300263,2607.9,2607.2,0.9591687]
[1646440926301,1.57300263,2607.9,2607.4,0.19183]
[1646440926500,1.57300263,2607.9,2607.4,1.12595306]
[1646440926699,1.64064042,2608.0,2607.4,2.08502556]
[1646440927102,1.64064042,2608.0,2607.5,0.38363]
[1646440927299,1.63814907,2608.0,2607.5,0.38363]
[1646440927543,1.63814907,2608.0,2607.6,1.15086]
[1646440927742,1.64059442,2608.0,2607.6,1.15086]
[1646440927941,1.64059442,2608.0,2607.8,1.0737394]
[1646440928950,1.64067217,2608.0,2607.8,1.0737394]
[1646440929149,1.64067217,2608.0,2607.7,0.9589765]
[1646440929549,1.64067217,2608.0,2607.6,0.38351]
[1646440929848,1.64067217,2608.0,2607.6,0.19181]
[1646440929849,1.63814907,2608.0,2607.6,0.19181]
[1646440930048,1.64067213,2608.0,2607.6,0.19181]
[1646440930248,1.64067213,2608.0,2607.7,1.04327736]
[1646440930448,1.64067213,2608.0,2607.7,13.08517736]
[1646440930647,1.64067213,2608.0,2607.7,1.42517736]
[1646440930847,1.64067213,2608.0,2607.7,1.0]
[1646440931048,1.64067213,2608.0,2607.6,1.19181]
[1646440931292,1.63814907,2608.0,2607.5,0.38363]
[1646440931503,1.572968,2607.9,2607.3,1.0]
[1646440932093,1.23340123,2607.5,2607.3,1.0]
[1646440932894,1.64053515,2608.0,2607.3,1.0]
[1646440933094,1.57305054,2607.9,2607.3,1.0]
[1646440933293,1.57305054,2607.9,2607.4,0.19184]
[1646440933693,1.57305054,2607.9,2607.4,0.14184]
[1646440937246,1.57305054,2607.9,2607.3,1.38366]
[1646440938046,1.57305054,2607.9,2607.3,1.0]
[1646440938247,0.8727695,2607.6,2607.3,1.19185]
[1646440938895,0.8727695,2607.6,2607.3,0.19185]
[1646440939897,1.6404401,2608.0,2607.3,0.19185]
[1646440940098,1.57303497,2607.9,2607.3,0.19185]
[1646440940501,1.57303497,2607.9,2607.3,1.15099]
[1646440941906,1.57303497,2607.9,2607.3,2.07174717]
[1646440942104,1.57303497,2607.9,2607.5,11.66]
[1646440942303,1.64021209,2608.0,2607.6,1.15081]
[1646440942745,1.64021209,2608.0,2607.6,0.19181]
[1646440942946,1.64021209,2608.0,2607.5,1.31404056]
[1646440943145,1.64021209,2608.0,2607.7,1.19030404]
[1646440943345,1.64027274,2608.0,2607.5,0.38361]
[1646440943546,1.64027274,2608.0,2607.4,0.93043056]
[1646440943749,1.64027274,2608.0,2607.3,0.93043056]
[1646440944353,1.04236798,2607.7,2607.2,0.93043056]
[1646440944551,1.04236798,2607.7,2607.1,0.93043056]
[1646440945348,1.04236798,2607.7,2607.1,12.59043056]
[1646440945547,1.04236798,2607.7,2607.1,0.93043056]
[1646440945751,1.04236798,2607.7,2607.0,4.3020265]
[1646440945752,1.57307008,2607.6,2607.0,4.3020265]
[1646440946051,5.07307008,2607.6,2607.0,1.0]
[1646440946294,1.57307008,2607.5,2607.0,2.0]
[1646440946594,1.57307008,2607.4,2607.0,1.0]
[1646440946795,1.04236798,2607.7,2607.0,1.0]
[1646440946994,1.5731646,2607.6,2607.0,1.0]
[1646440947197,1.5231646,2607.6,2607.0,1.0]
[1646440948196,0.87348547,2607.3,2607.0,1.0]
[1646440949199,0.87348547,2607.3,2606.8,0.1917]
[1646440949200,0.87348547,2607.3,2606.3,0.01176824]
[1646440949399,0.87348547,2607.3,2606.5,1.0]
[1646440949598,0.87348547,2607.3,2606.3,0.00588412]
[1646440949801,1.00856672,2606.8,2606.3,0.00588412]
[1646440950557,1.00856672,2606.8,2606.3,0.0058929]
[1646440950953,3.5,2606.7,2606.3,0.0058929]
[1646440951154,1.00856672,2606.8,2606.3,0.0058929]
[1646440951353,4.50856672,2606.8,2606.3,0.0058929]
[1646440951561,1.00856672,2606.8,2606.3,0.0058929]
[1646440951756,1.11127316,2606.4,2606.3,0.0058929]
[1646440951961,1.11127316,2606.4,2606.0,1.00589347]
[1646440952961,1.11127316,2606.4,2606.0,1.0]
[1646440955799,0.1918,2606.7,2606.0,1.0]
[1646440955999,3.5,2607.0,2606.0,1.0]
[1646440956000,0.1918,2606.9,2606.0,1.0]
[1646440958355,1.22434274,2606.4,2606.0,0.95]
[1646440960959,1.22434274,2606.4,2606.0,1.52624127]
[1646440961396,0.1918,2606.9,2606.0,1.52624127]
[1646440961595,0.1918,2606.9,2606.0,0.95]
[1646440962594,1.1223909,2606.7,2606.0,2.07303474]
[1646440963000,2.8491,2607.1,2606.0,2.07303474]
[1646440963297,2.4672,2607.1,2606.0,2.01496474]
[1646440963494,2.4672,2607.1,2606.0,13.67496474]
[1646440963898,2.4672,2607.1,2606.0,14.67496474]
[1646440964299,1.05322243,2606.8,2606.0,3.20689474]
[1646440964500,1.05322243,2606.8,2606.0,3.01496474]
[1646440964955,1.05322243,2606.8,2606.0,3.02034792]
[1646440965140,1.00322243,2606.8,2606.0,2.02034792]
[1646440965740,1.00322243,2606.8,2606.0,2.01496474]
[1646440965942,2.6951,2607.3,2606.2,0.19192]
[1646440966141,2.6951,2607.3,2606.0,2.01496474]
[1646440966142,6.1951,2607.3,2606.0,2.01496474]
[1646440966340,6.1951,2607.3,2606.0,14.26296081]
[1646440966542,6.1951,2607.3,2606.0,1.89193]
[1646440966742,6.1951,2607.3,2606.0,0.89193]
[1646440966942,0.3819,2607.2,2606.0,1.27575]
[1646440967443,6.1951,2607.3,2606.1,0.00538297]
[1646440967944,1.03222255,2606.6,2606.1,0.00538297]
[1646440968147,1.03222255,2606.6,2606.0,1.27575]
[1646440968548,1.03222255,2606.6,2606.2,0.00534397]
[1646440969597,1.03222255,2606.6,2606.0,1.27575]
[1646440971096,1.03222255,2606.6,2606.0,0.89193]
[1646440972750,1.12530799,2606.2,2606.0,0.89193]
[1646440973447,3.5,2606.9,2606.0,0.89193]
[1646440973649,6.3503,2607.1,2606.0,0.89193]
[1646440973850,7.3503,2607.1,2606.0,0.89193]
[1646440974351,5.9684,2607.1,2606.0,0.89193]
[1646440974550,2.4684,2607.1,2606.0,0.89193]
[1646440974752,2.4684,2607.1,2606.3,1.21807809]
[1646440974753,3.48187373,2607.1,2606.3,1.21807809]
[1646440974952,1.01347373,2607.1,2606.2,0.19192]
[1646440975751,1.01347373,2607.1,2606.2,0.19846175]
[1646440975952,1.01347373,2607.1,2606.2,0.00654175]
[1646440976199,3.6918,2607.2,2606.2,0.00654175]
[1646440976200,1.13665499,2606.6,2606.2,0.00654175]
[1646440977296,1.13665499,2606.6,2606.0,1.08387]
[1646440977597,1.13665499,2606.6,2606.1,0.00515173]
[1646440978200,1.13665499,2606.6,2606.0,1.65139867]
[1646440979202,1.13665499,2606.6,2606.0,1.08387]
[1646440979803,3.2734,2607.1,2606.0,1.08387]
[1646440980051,2.2734,2607.1,2606.0,1.08387]
[1646440980855,0.95290795,2606.9,2606.0,1.08387]
[1646440981554,0.95290795,2606.9,2606.0,0.89193]
[1646440981952,0.98589024,2606.3,2606.0,0.89193]
[1646440982853,0.98589024,2606.3,2606.0,1.4670312]
[1646440983256,3.5,2606.2,2606.0,0.89193]
[1646440983458,0.98589024,2606.3,2606.0,0.89193]
[1646440983698,1.20145993,2605.8,2605.6,0.00596346]
[1646440984304,1.20145993,2605.8,2605.6,0.00520146]
[1646440985119,3.5,2605.7,2605.6,0.00520146]
[1646440985307,4.70145993,2605.8,2605.2,0.00156317]
[1646440985706,5.70145993,2605.8,2605.2,0.00156317]
[1646440986113,1.23344099,2605.3,2604.7,0.00184905]
[1646440986308,2.9071,2605.7,2604.6,1.2093498]
[1646440986508,3.5,2605.6,2605.0,0.00156329]
[1646440986707,2.5252,2605.7,2605.0,0.00156329]
[1646440987544,0.96720665,2605.2,2604.5,0.00184905]
[1646440987744,0.96720665,2605.2,2604.8,0.00620147]
[1646440988543,2.5252,2605.7,2604.8,0.00620147]
[1646440989148,2.5252,2605.7,2604.9,0.00155034]
[1646440989748,0.95400082,2605.3,2604.9,0.00155034]
[1646440990248,0.95400082,2605.3,2605.2,0.00155017]
[1646440991509,0.95400082,2605.3,2605.1,0.00128731]
[1646440991910,3.5,2605.2,2605.1,8.731e-05]
[1646440992111,4.6918,2605.6,2605.1,8.731e-05]
[1646440992309,2.72706173,2605.5,2605.1,8.731e-05]
[1646440992611,0.1918,2605.5,2605.1,8.731e-05]
[1646440992809,2.717,2605.7,2605.1,0.00128733]
[1646440993009,2.717,2605.7,2605.1,0.90764763]
[1646440993208,0.97881975,2605.9,2605.1,0.90764763]
[1646440993509,1.57440413,2605.8,2605.1,0.90820935]
[1646440993916,1.97881975,2605.9,2605.1,1.10021935]
[1646440994112,1.15471732,2605.8,2605.1,1.10021935]
[1646440994514,1.15471732,2605.8,2605.1,0.00184905]
[1646440994713,2.16891975,2605.9,2604.8,0.00184905]
[1646440994964,0.78701975,2605.9,2605.3,0.00149139]
[1646440995155,0.78701975,2605.9,2605.4,0.19197]
[1646440995353,0.78701975,2605.9,2605.5,1.9194]
[1646440995553,0.78701975,2605.9,2605.5,13.9613]
[1646440995754,0.78701975,2605.9,2605.6,12.76245266]
[1646440996156,0.78701975,2605.9,2605.6,13.76245266]
[1646440996354,0.78701975,2605.9,2605.7,11.66]
[1646440996581,0.78701975,2605.9,2605.7,13.1934437]
[1646440996755,0.78701975,2605.9,2605.7,14.1934437]
[1646440996954,0.78701975,2605.9,2605.7,15.1530337]
[1646440997955,0.00229397,2606.9,2606.0,0.95954]
[1646440998259,0.1918,2607.0,2606.0,0.95954]
[1646440998260,0.1918,2607.0,2606.3,0.19191]
[1646440998560,2.6951,2607.3,2606.2,12.42572]
[1646440998800,0.0023013,2606.9,2606.2,13.42572]
[1646440999002,0.0023013,2606.9,2606.2,1.76572]
[1646440999204,0.0023013,2606.9,2606.3,1.1512566]
[1646440999405,0.0023013,2606.9,2606.2,0.38382]
[1646440999702,1.1841572,2606.8,2606.1,1.19205239]
[1646440999902,1.1841572,2606.8,2606.0,0.0060617]
[1646441000302,1.1841572,2606.8,2606.1,0.95962]
[1646441000504,1.1841572,2606.8,2606.2,0.19192]
[1646441000902,2.8532,2607.1,2606.2,0.19192]
[1646441000903,2.4713,2607.1,2606.2,0.19192]
[1646441001202,0.00240329,2606.9,2606.2,0.19192]
[1646441001904,0.8916364,2606.6,2606.2,0.19192]
[1646441002549,0.8916364,2606.6,2606.0,0.00592397]
[1646441003147,0.8916364,2606.6,2605.9,1.2729108]
[1646441003347,0.00239289,2606.9,2606.0,0.95961]
[1646441003550,0.00239289,2606.9,2606.1,0.9595714]
[1646441004555,0.0049179,2606.9,2606.5,0.94388491]
[1646441004754,0.00252501,2606.9,2606.5,0.94388491]
[1646441005756,0.00252206,2606.9,2606.5,0.94388491]
[1646441005955,0.00252206,2606.9,2606.6,0.95942]
[1646441006594,0.97559837,2607.5,2606.6,0.95942]
[1646441006999,0.0025221,2606.9,2606.6,0.95942]
[1646441007797,0.13819997,2607.6,2606.6,1.9187946]
[1646441007999,0.13819997,2607.6,2606.8,0.19187]
[1646441008201,0.00244731,2606.9,2606.8,0.19187]
[1646441008398,0.00244731,2606.9,2606.7,0.38374]
[1646441009404,0.00494461,2606.9,2606.7,0.38374]
[1646441009608,0.0024973,2606.9,2606.7,0.38374]
[1646441010256,0.0024973,2606.9,2606.4,0.38378]
[1646441011857,0.002397,2606.9,2606.4,0.38378]
[1646441012055,0.002397,2606.9,2606.4,1.37535405]
[1646441012456,0.002397,2606.9,2606.4,0.38378]
[1646441012755,1.02856711,2607.1,2606.4,0.38378]
[1646441012955,0.00231094,2606.9,2606.4,0.38378]
[1646441014002,0.32359046,2607.4,2606.4,0.38378]
[1646441014199,0.00231094,2606.9,2606.4,0.38378]
[1646441014598,0.00231094,2606.9,2606.4,1.56986778]
[1646441015400,0.87827394,2607.2,2606.4,1.56986778]
[1646441015600,0.00233184,2606.9,2606.4,1.56986778]
[1646441016702,0.00232788,2606.9,2606.4,1.56986778]
[1646441017447,0.87827394,2607.2,2606.4,1.56986778]
[1646441017846,0.00232788,2606.9,2606.4,1.56986778]
[1646441018848,0.87827394,2607.2,2606.4,1.56986778]
[1646441019050,0.00243892,2606.9,2606.4,0.38378]
[1646441019653,0.00243892,2606.9,2606.1,2.21434828]
[1646441019850,0.00243892,2606.9,2606.1,0.00534828]
[1646441020054,1.04594026,2606.4,2606.1,0.00534828]
[1646441020252,1.04594026,2606.4,2606.1,0.01069656]
[1646441020453,1.04594026,2606.4,2606.1,0.00534828]
[1646441020652,1.04594026,2606.4,2605.7,1.22506954]
[1646441021052,1.04594026,2606.4,2605.8,0.19195]
[1646441021296,1.04594026,2606.4,2605.8,2.11118]
[1646441021497,0.0024395,2606.9,2605.8,2.11118]
[1646441022497,0.00203978,2606.7,2605.8,0.19195]
[1646441022702,1.06957978,2606.5,2605.8,0.19195]
[1646441023698,1.06957978,2606.5,2605.5,2.98658]
[1646441023699,3.5,2606.4,2605.5,2.98658]
[1646441023902,3.5,2606.4,2605.4,1.0]
[1646441024304,1.06957978,2606.5,2605.4,1.0]
[1646441024503,3.5,2606.4,2605.5,0.00179302]
[1646441024704,1.00836557,2605.7,2605.5,0.00179302]
[1646441024963,1.00836557,2605.7,2605.4,0.00651188]
[1646441026158,2.4166,2606.0,2605.4,0.00651188]
[1646441026353,2.4166,2606.0,2605.4,0.00162794]
[1646441026952,2.4166,2606.0,2605.4,0.19361794]
[1646441027153,3.9067,2606.4,2605.4,0.19361794]
[1646441027354,1.10722904,2606.2,2605.5,0.00179302]
[1646441027552,1.10722904,2606.2,2605.6,0.00162785]
[1646441028554,1.10722904,2606.2,2605.8,0.00162773]
[1646441028805,1.29902904,2606.2,2605.8,0.00162773]
[1646441029002,1.10722904,2606.2,2605.8,0.00162773]
[1646441029802,1.10722904,2606.2,2605.5,0.00179302]
[1646441031810,6.5,2606.1,2605.5,0.00179302]
[1646441032008,0.00227838,2605.4,2604.5,1.0]
[1646441032207,3.83417838,2605.7,2604.5,1.0]
[1646441032845,1.16103469,2604.9,2604.3,1.7509]
[1646441033046,1.16103469,2604.9,2604.3,0.007]
[1646441033446,1.16103469,2604.9,2604.6,0.00643245]
[1646441033646,0.33417838,2605.6,2604.6,0.00643245]
[1646441033849,13.3088,2605.7,2604.6,0.00643245]
[1646441034450,12.3088,2605.7,2604.6,0.00643245]
[1646441034652,6.4269,2605.7,2605.0,0.00160787]
[1646441034853,1.17933712,2605.6,2605.0,0.00160787]
[1646441035653,3.6918,2605.5,2605.0,0.00160787]
[1646441035855,3.6918,2605.5,2605.2,0.00160775]
[1646441036053,4.6918,2605.5,2605.2,0.00160775]
[1646441036694,4.6918,2605.5,2604.8,0.00643196]
[1646441036896,0.9585782,2604.9,2604.8,0.00643196]
[1646441037100,3.2,2604.8,2604.1,0.10729744]
[1646441037297,0.9585782,2604.9,2603.9,0.57611]
[1646441037298,3.5,2604.7,2603.9,0.57611]
[1646441037500,3.5,2604.7,2603.9,0.384]
[1646441037703,4.5,2604.7,2603.9,0.384]
[1646441037897,3.5,2604.7,2603.9,0.384]
[1646441038098,4.5,2604.7,2603.9,0.384]
[1646441038298,0.96784239,2604.4,2603.9,0.384]
[1646441038699,0.96784239,2604.4,2603.6,1.6944]
[1646441038902,3.5,2604.3,2603.6,0.19212]
[1646441039101,0.96784239,2604.4,2603.6,0.19212]
[1646441039301,0.96784239,2604.4,2603.3,3.01394]
[1646441039501,4.0739,2604.6,2603.3,3.01394]
[1646441039502,0.88370352,2603.9,2603.4,0.96062]
[1646441040178,0.88370352,2603.9,2603.2,1.02502085]
[1646441040480,0.88370352,2603.9,2603.2,0.02680086]
[1646441040877,0.88370352,2603.9,2603.2,0.02502085]
[1646441041578,3.5,2603.8,2603.2,0.02502085]
[1646441041777,0.97103311,2603.4,2603.2,0.02502085]
[1646441041976,6.9034,2604.1,2603.2,0.02502085]
[1646441042180,3.4034,2604.1,2603.2,0.02502085]
[1646441042583,2.4034,2604.1,2603.2,0.02502085]
[1646441042885,0.86561707,2603.9,2603.2,0.8897054]
[1646441043083,0.86561707,2603.9,2603.5,0.00159268]
[1646441043700,0.86561707,2603.9,2602.9,0.25272592]
[1646441044300,0.86561707,2603.9,2603.0,1.22831175]
[1646441044501,0.86561707,2603.9,2603.6,0.00159265]
[1646441045503,0.86561707,2603.9,2603.0,0.382]
[1646441045802,6.692,2604.2,2603.0,0.382]
[1646441045803,1.15533507,2603.3,2603.0,0.382]
[1646441046208,3.5,2604.0,2603.0,0.382]
[1646441046404,2.7765,2604.1,2603.2,0.19216]
[1646441046602,2.7765,2604.1,2603.3,1.0]
[1646441046803,3.0,2604.2,2603.3,1.0]
[1646441047007,2.0,2604.2,2603.3,1.0]
[1646441047203,1.06530639,2603.9,2603.3,1.0]
[1646441049158,1.05936334,2603.5,2603.3,1.0]
[1646441049359,1.05936334,2603.5,2603.4,0.00177171]
[1646441049560,1.05936334,2603.5,2603.3,1.0]
[1646441049757,1.00936334,2603.5,2603.3,1.0]
[1646441051420,3.5,2603.4,2603.3,1.0]
[1646441051804,1.00936334,2603.5,2603.3,1.0]
[1646441052007,5.5,2603.4,2603.3,1.0]
[1646441052203,0.97958793,2603.1,2603.0,0.38377171]
[1646441052402,0.97958793,2603.1,2603.0,0.382]
[1646441052804,0.97958793,2603.1,2603.0,0.38339613]
[1646441054010,4.47958793,2603.1,2603.0,0.382]
[1646441054207,4.47958793,2603.1,2602.8,5.89e-05]
[1646441054208,0.48831804,2602.9,2602.8,5.89e-05]
[1646441054409,0.48831804,2602.9,2601.8,0.0529385]
[1646441054410,11.66,2602.7,2601.8,0.0529385]
[1646441054608,11.66,2602.7,2602.0,0.00358508]
[1646441054609,0.01206786,2602.3,2602.0,0.00358508]
[1646441054809,0.01206786,2602.3,2601.8,0.00717016]
[1646441055062,3.692,2602.4,2601.8,0.00717016]
[1646441055262,3.692,2602.4,2601.5,0.0213144]
[1646441055263,4.692,2602.4,2601.5,0.0213144]
[1646441055460,4.4,2602.3,2601.5,0.01434032]
[1646441055661,4.5,2602.4,2601.5,0.01434032]
[1646441055662,2.8,2602.1,2601.5,0.27743429]
[1646441055862,1.13656433,2601.8,2601.5,0.27743429]
[1646441056065,1.13656433,2601.8,2601.1,0.0145229]
[1646441056066,4.4,2601.6,2601.1,0.0145229]
[1646441056262,15.16,2601.5,2601.1,0.0145229]
[1646441056462,11.56,2601.5,2601.1,0.0145229]
[1646441056665,11.56,2601.5,2601.0,0.0190145]
[1646441056666,15.06,2601.5,2601.0,0.0190145]
[1646441056862,15.96,2601.4,2601.0,3.74e-05]
[1646441057065,15.96,2601.4,2600.8,0.038029]
[1646441057066,2.8,2601.2,2600.8,0.038029]
[1646441057264,1.10038964,2600.9,2600.7,0.3829]
[1646441057465,1.10038964,2600.9,2600.7,0.3329]
[1646441057664,0.0128055,2601.3,2600.7,0.3329]
[1646441057865,2.0,2601.6,2600.7,0.3329]
[1646441058069,2.0,2601.4,2600.7,0.33466798]
[1646441058265,2.0,2601.4,2600.8,0.00176798]
[1646441058707,1.02900811,2601.3,2600.8,0.00176798]
[1646441058910,2.0,2601.4,2601.0,0.00148696]
[1646441059512,0.1922,2601.3,2601.0,8.696e-05]
[1646441059715,3.6922,2601.3,2601.0,8.696e-05]
[1646441059910,4.41201083,2601.2,2599.4,1.0462944]
[1646441060112,2.8,2601.0,2599.4,1.0462944]
[1646441060309,2.8,2601.0,2599.4,2.08649654]
[1646441060310,0.96241,2600.8,2599.4,2.08649654]
[1646441060511,11.66,2600.5,2599.4,2.08649654]
[1646441060812,1.15112163,2600.4,2600.2,0.0745763]
[1646441061014,1.15112163,2600.4,2600.2,0.0067763]
[1646441061312,4.4,2600.3,2599.4,0.0462944]
[1646441062110,1.15112163,2600.4,2599.5,1.05005337]
[1646441062312,2.8,2600.2,2599.1,0.8047178]
[1646441062562,17.96,2600.2,2599.1,0.8047178]
[1646441062764,15.46,2600.2,2599.1,0.8047178]
[1646441062961,11.66,2600.0,2599.1,0.8047178]
[1646441063160,15.16,2599.9,2599.1,0.8047178]
[1646441063363,0.91592122,2599.3,2599.1,0.8047178]
[1646441063563,0.91592122,2599.3,2599.1,0.03323607]
[1646441063765,1.79992122,2599.3,2599.1,0.03323607]
[1646441064367,3.7,2599.2,2598.8,0.06267897]
[1646441064568,0.99433725,2598.9,2598.8,0.06267897]
[1646441065366,0.99433725,2598.9,2598.8,7.897e-05]
[1646441065568,3.5,2598.8,2598.7,0.0257904]
[1646441066065,1.62543725,2598.9,2598.7,0.0257904]
[1646441066309,0.2631,2598.9,2598.7,0.0257904]
[1646441067307,0.2631,2598.9,2598.7,1.26058138]
[1646441068407,0.2631,2598.9,2598.7,1.26192104]
[1646441068609,0.00255611,2599.2,2598.7,1.64382104]
[1646441069209,4.4491,2600.1,2598.7,1.64248138]
[1646441069411,0.9305011,2599.9,2599.2,1.09937058]
[1646441069613,0.9305011,2599.9,2599.2,1.10113292]
[1646441070066,0.9305011,2599.9,2599.2,0.02755274]
[1646441070368,0.9305011,2599.9,2599.2,0.0257904]
[1646441070369,3.5,2599.8,2599.2,0.0257904]
[1646441070565,0.1923,2599.8,2599.2,0.0257904]
[1646441070769,2.0,2599.5,2599.2,0.0257904]
[1646441071168,0.9854551,2599.4,2599.2,9.04e-05]
[1646441071565,2.0,2599.5,2599.2,9.04e-05]
[1646441071767,13.66,2599.5,2599.2,9.04e-05]
[1646441072066,2.00255632,2599.5,2599.2,9.04e-05]
[1646441072275,2.0,2599.4,2599.2,9.04e-05]
[1646441073066,2.00227427,2599.4,2599.2,9.04e-05]
[1646441075515,2.00454854,2599.4,2599.2,9.04e-05]
[1646441075813,13.66227427,2599.4,2599.2,9.04e-05]
[1646441076214,2.00227427,2599.4,2599.2,9.04e-05]
[1646441076414,1.05964833,2599.3,2599.2,9.04e-05]
[1646441077115,1.05964833,2599.3,2599.0,0.00107202]
[1646441077319,1.05964833,2599.3,2599.0,7.202e-05]
[1646441077771,1.05964833,2599.3,2598.6,0.05372]
[1646441077772,0.00072798,2598.9,2598.6,0.05372]
[1646441078361,1.22520583,2598.7,2598.6,0.05372]
[1646441078562,0.00072798,2598.9,2598.6,0.05372]
[1646441081406,0.00072798,2598.9,2598.6,0.05548234]
[1646441081612,0.00072798,2598.9,2598.8,1.37866783]
[1646441082407,0.00072798,2598.9,2598.8,13.03866783]
[1646441082810,0.00072798,2598.9,2598.8,17.53866783]